Cogmind - Beta 12 --- EXPLORER MODE // 2023.05.12 @ 22:22:05 Player: Sardaukar Result: Destroyed by 8R-AWN with 8R-AWN's Boregun Performance ------------- Evolutions (0) 0 Regions Visited (3) 600 Robots Destroyed (15) 75 Value Destroyed (464) 464 Prototype IDs (5) 100 Alien Tech Used (0) 0 Bonus (300) 300 TOTAL SCORE: 1539 Bonus ------- Aligned with FarCom 300 Cogmind --------- Core Integrity 0/250 Matter 260/300 Energy 100/100 System Corruption 0% Temperature Cool (0) Movement Core (200) Ox3 Location -10/Exiles Parts ------- > --- POWER (1) -------- (None) > --- PROPULSION (2) --- (None) > --- UTILITY (3) ------ Medium Storage Unit Signal Interpreter > --- WEAPON (2) ------- (None) > --- INVENTORY (10) --- Aluminum Leg Aluminum Leg Aluminum Leg Aluminum Leg Heat Sink Large Storage Unit Structural Scanner Propulsion Shielding Light Armor Plating Assault Rifle Peak State ------------ > --- POWER ------------ Ion Engine > --- PROPULSION ------- Aluminum Leg Aluminum Leg > --- UTILITY ---------- Medium Storage Unit Signal Interpreter > --- WEAPON ----------- Firepult > --- INVENTORY -------- Aluminum Leg Aluminum Leg Aluminum Leg Aluminum Leg Heat Sink Large Storage Unit Structural Scanner Propulsion Shielding Light Armor Plating Assault Rifle [Rating: 26] Favorites ----------- Power Ion Engine Engine Ion Engine Propulsion Aluminum Leg Leg Aluminum Leg Utility Medium Storage Unit Device Sensor Array Storage Medium Storage Unit Processor Signal Interpreter Protection Light Armor Plating Weapon Particle Gun Energy Gun Particle Gun Energy Cannon Firepult Ballistic Gun Assault Rifle Build | -11 -10 -10 -10 ------- Run | Jun Mat Min Exi Slots Evolved 1 | . 1 . . Power . | . . . . Propulsion . | . . . . Utility 1 | . 1 . . Weapon . | . . . . Parts Attached 21 | 7 4 5 5 Power 1 | 1 . . . Engine 1 | 1 . . . Core . | . . . . Reactor . | . . . . Propulsion 7 | 2 . 2 3 Treads . | . . . . Leg 7 | 2 . 2 3 Wheel . | . . . . Hover . | . . . . Flight . | . . . . Utility 7 | 2 2 2 1 Device 3 | . 1 1 1 Storage 1 | 1 . . . Processor 1 | . 1 . . Hackware . | . . . . Protection 2 | 1 . 1 . Artifact . | . . . . Weapon 6 | 2 2 1 1 Energy Gun 3 | . 2 1 . Energy Cannon 1 | . . . 1 Ballistic Gun 2 | 2 . . . Ballistic Cannon . | . . . . Launcher . | . . . . Special Weapon . | . . . . Impact Weapon . | . . . . Slashing Weapon . | . . . . Piercing Weapon . | . . . . Special Melee Weapon . | . . . . Unidentified Prototypes 2 | . . . 2 Parts Lost 2 | . . . 2 Power 1 | . . . 1 Propulsion . | . . . . Utility . | . . . . Weapon 1 | . . . 1 Highest Loss Streak 2 | . . . 2 To Critical Strikes 1 | . . . 1 Average Slot Usage (%) 95 | . 100 100 78 Engine 11 | . 12 12 10 Leg 24 | . 25 25 21 Device 7 | . 6 10 5 Storage 12 | . 12 12 12 Processor 12 | . 12 12 12 Protection 3 | . 5 1 . Energy Gun 17 | . 15 25 11 Ballistic Gun 4 | . 9 . . Naked Turns . | . . . . Heaviest Build 37 | 22 23 22 37 Greatest Support 20 | 20 20 20 20 Greatest Overweight (x) 4 | 4 1 1 4 Average Overweight (x) . | 1 . . . Largest Inventory Capacity 10 | 10 10 10 10 Average Capacity 9 | 9 10 10 10 Most Carried 10 | 1 7 10 10 Average Carried 5 | . 3 7 10 Final Capacity 10 | 10 10 10 10 Final Carried 10 | 1 7 10 10 Class Distribution -------------------- 100% | Hacker-Mutant Dominant Class ---------------- Hacker-Mutant | -10/Materials Hacker-Mutant | -10/Mines Hacker-Mutant | -10/Exiles Resources | -11 -10 -10 -10 ----------- Run | Jun Mat Min Exi Matter Collected 420 | 221 149 50 . Remotely . | . . . . Salvage Created 660 | . 389 168 103 Parts 31 | . 25 6 . Haulers Intercepted 1 | . 1 . . Recyclers Shooed 1 | . 1 . . Parts Field Recycled . | . . . . Retrieved Matter . | . . . . Parts Self-Destructed . | . . . . Prevented . | . . . . Kills | -11 -10 -10 -10 ------- Run | Jun Mat Min Exi Combat Hostiles Destroyed 20 | . 9 4 7 Guns 13 | . 9 4 . Cannons 2 | . . . 2 AOE 5 | . . . 5 Classes Destroyed 5 | . 4 . 1 Hauler 1 | . 1 . . Watcher 1 | . 1 . . Swarmer 2 | . 2 . . Grunt 11 | . 7 4 . Assembled 7 | . . . 7 Best Kill Streak 7 | . 4 2 7 Combat Bots Only 7 | . 4 2 7 Max Kills in Single Turn 3 | . 1 1 3 Gunslinging . | . . . . Exploded 3 | . . . 3 Melee . | . . . . Uniques/NPCs Destroyed . | . . . . Combat | -11 -10 -10 -10 -------- Run | Jun Mat Min Exi Damage Taken 738 | . 149 98 491 Core 258 | . 18 16 224 Absorbed by Shields . | . . . . Core Remaining (%) 100 | 100 . . . Volleys Fired 50 | 1 31 10 8 Largest 2 | 2 2 2 1 Hottest 250 | 40 105 105 250 Shots Fired 85 | 2 55 20 8 Gun 77 | 2 55 20 . Cannon 8 | . . . 8 Launcher . | . . . . Special . | . . . . Kinetic 20 | 2 18 . . Thermal 65 | . 37 20 8 Explosive . | . . . . Electromagnetic . | . . . . Robot Hit Streak 25 | 2 15 25 16 Robot Miss Streak 4 | . 3 . 4 Penetration Max . | . . . . Secondary Targets . | . . . . Shots Hit Robots 68 | 2 41 20 5 Core Hits 40 | 1 18 9 12 Critical Kills . | . . . . Critical Parts Destroyed . | . . . . Critical Strikes . | . . . . Melee Attacks . | . . . . Impact . | . . . . Slashing . | . . . . Piercing . | . . . . Sneak Attacks . | . . . . Combat Hostiles . | . . . . Follow-up Attacks . | . . . . Damage Inflicted 1201 | 22 556 269 354 Guns 847 | 22 556 269 . Cannons 59 | . . . 59 Explosions 295 | . . . 295 Melee . | . . . . Ramming . | . . . . Kinetic 203 | 22 181 . . Thermal 998 | . 375 269 354 Explosive . | . . . . Electromagnetic . | . . . . Impact . | . . . . Slashing . | . . . . Piercing . | . . . . Highest Corruption . | . . . . Average Corruption . | . . . . Corruption Purged . | . . . . Corruption Blocked . | . . . . Overload Shots . | . . . . Overflow Damage . | . . . . Projectiles . | . . . . Explosions . | . . . . Melee . | . . . . Knockbacks . | . . . . Impact . | . . . . Kinetic . | . . . . Secondary . | . . . . Self-Inflicted Damage . | . . . . Shots . | . . . . Rammed . | . . . . Targets Rammed . | . . . . Kicked . | . . . . Crushed . | . . . . Highest Temperature 630 | . 282 339 630 Average Temperature 158 | . 85 152 243 Received Heat Transfer 234 | . 120 114 . Effects 15 | . 2 . 13 Shutdowns 3 | . . . 3 Energy Bleed 1 | . . . 1 Interference 5 | . 2 . 3 Short Circuit 1 | . . . 1 Damage (major) 5 | . . . 5 Siege Activations . | . . . . Robots Corrupted . | . . . . Combat Hostiles . | . . . . Parts Fried . | . . . . Impact Corruptions . | . . . . Robots Melted . | . . . . Combat Hostiles . | . . . . Parts Melted 4 | . 1 3 . Heat Transferred 3519 | . 819 620 2080 Parts Sabotaged . | . . . . Parts Stolen . | . . . . Parts Stripped . | . . . . Power Chain Reactions . | . . . . Missiles Intercepted . | . . . . Alert | -11 -10 -10 -10 ------- Run | Jun Mat Min Exi Peak Influence 179 | . 179 100 . Initial 49 | . . 49 . Average 57 | . 66 52 . Maximum Alert Level . | . . . . Low Security (%) 100 | 100 100 100 . Level 1 . | . . . . Level 2 . | . . . . Level 3 . | . . . . Level 4 . | . . . . Level 5 . | . . . . High Security . | . . . . Max Security . | . . . . Squads Dispatched 2 | . 2 . . Investigation 2 | . 2 . . Extermination . | . . . . Reinforcement . | . . . . Assault . | . . . . Garrison . | . . . . Intercept . | . . . . Searches Triggered . | . . . . Construction Impeded . | . . . . Haulers Reinforced . | . . . . Active Scanning Responses . | . . . . Cargo Convoy Interrupts . | . . . . Stealth | -11 -10 -10 -10 --------- Run | Jun Mat Min Exi Distress Signals . | . . . . Communications Jammed . | . . . . Distress Signals . | . . . . Times Spotted 23 | . 13 4 6 Peak Tracking Total 9 | . 2 2 9 Tactical Retreats . | . . . . Traps | -11 -10 -10 -10 ------- Run | Jun Mat Min Exi Traps Triggered 1 | . 1 . . Indirectly . | . . . . Trap Hack Attempts . | . . . . Triggered . | . . . . Disarmed . | . . . . Reprogrammed . | . . . . Reused . | . . . . Traps Extracted . | . . . . Installed . | . . . . Triggered 2 | . . 2 . Machines | -11 -10 -10 -10 ---------- Run | Jun Mat Min Exi Machines Disabled 3 | . . . 3 Max in Single Turn 1 | . . . 1 Machines Repaired . | . . . . Machines Sabotaged . | . . . . Overloaded Fab Kills . | . . . . Hacking | -11 -10 -10 -10 --------- Run | Jun Mat Min Exi Machines Accessed 9 | . 9 . . Terminals 8 | . 8 . . Fabricators . | . . . . Repair Stations . | . . . . Recycling Units 1 | . 1 . . Scanalyzers . | . . . . Garrison Access . | . . . . Total Hacks 21 | . 21 . . Successful 7 | . 7 . . Failed 14 | . 14 . . Catastrophic 2 | . 2 . . Database Lockouts . | . . . . Manual 14 | . 13 . 1 Terminals 19 | . 19 . . Fabricators . | . . . . Repair Stations . | . . . . Recycling Units 2 | . 2 . . Scanalyzers . | . . . . Garrison Access . | . . . . Terminal Hacks 6 | . 6 . . Robot Analysis 2 | . 2 . . Prototype ID Bank 1 | . 1 . . Terminal Index 1 | . 1 . . Surveillance Status 1 | . 1 . . Registered Components 1 | . 1 . . Fabricator Hacks . | . . . . Repair Station Hacks . | . . . . Recycling Unit Hacks 1 | . 1 . . Retrieve Components 1 | . 1 . . Scanalyzer . | . . . . Garrison Access Hacks . | . . . . Unauthorized Hacks . | . . . . Terminals . | . . . . Fabricators . | . . . . Repair Stations . | . . . . Recycling Units . | . . . . Scanalyzers . | . . . . Garrison Access . | . . . . Data Cores Recovered . | . . . . Used . | . . . . Hacking Detections 8 | . 8 . . Full Trace Events 2 | . 2 . . Feedback Events . | . . . . Feedback Blocked . | . . . . Robot Schematics Acquired . | . . . . Robots Built . | . . . . Authchips . | . . . . Time . | . . . . Total Robot Build Rating . | . . . . Part Schematics Acquired . | . . . . Parts Built . | . . . . Authchips . | . . . . Time . | . . . . Total Part Build Rating . | . . . . Parts Repaired . | . . . . Time . | . . . . Parts Recycled . | . . . . Recycled Matter . | . . . . Retrieved Matter . | . . . . Retrieved Components 5 | . 5 . . Parts Scanalyzed . | . . . . Part Schematics Acquired . | . . . . Parts Damaged . | . . . . Bothacking | -11 -10 -10 -10 ------------ Run | Jun Mat Min Exi Used RIF Installer . | . . . . Robots Hacked . | . . . . Non-combat . | . . . . Combat . | . . . . Robot Hacks Applied . | . . . . Relay Couplers Released . | . . . . Fabnet Peak Effective % . | . . . . Robots Rewired . | . . . . Allies Hacked . | . . . . Hacks Repelled . | . . . . Allies | -11 -10 -10 -10 -------- Run | Jun Mat Min Exi Total Allies . | . . . . Largest Group . | . . . . Highest-Rated Group . | . . . . Highest-Rated Ally . | . . . . Total Orders . | . . . . Ally Attacks . | . . . . Total Damage . | . . . . Kills . | . . . . Allies Corrupted . | . . . . Allies Melted . | . . . . Intel | -11 -10 -10 -10 ------- Run | Jun Mat Min Exi Robot Analysis Total 2 | . 2 . . Derelict Logs Recovered . | . . . . Drone Launches . | . . . . Drone Recoveries . | . . . . Exploration | -11 -10 -10 -10 ------------- Run | Jun Mat Min Exi Turns Passed 1737 | 79 776 562 320 Spaces Moved 909 | 40 440 265 164 Core 34 | 8 . . 26 Treads . | . . . . Legs 875 | 32 440 265 138 Wheels . | . . . . Hover . | . . . . Flight . | . . . . Fastest Speed 50 | 50 120 120 120 Average Speed 141 | 166 148 123 143 Slowest Speed 330 | 250 190 190 330 Overloaded Moves . | . . . . Propulsion Burnouts . | . . . . Robots Hopped . | . . . . Cave-ins Triggered . | . . . . Exploration Rate (%) 43 | 5 66 63 41 Regions Visited 3 Branch Regions 2 Pre-discovered Areas . | . . . . Known Exits Taken 3 | 1 1 1 . Unknown Exits Taken . | . . . . Scrap Searched . | . . . . Spaces Dug . | . . . . Terrain Destroyed 29 | . . . 29 Melee . | . . . . Projectile . | . . . . AOE 29 | . . . 29 Terrain Rammed . | . . . . Walls Destroyed . | . . . . Machines Disabled . | . . . . Actions | -11 -10 -10 -10 --------- Run | Jun Mat Min Exi Total 1273 | 48 506 478 241 Wait 279 | . 24 197 58 Move 906 | 39 439 264 164 Hop . | . . . . Pick Up 8 | 1 6 1 . Fast Attach 11 | 7 2 . 2 Attach 1 | . 1 . . Detach 1 | . 1 . . Swap 9 | . 1 5 3 Drop 8 | . 1 1 6 Fire 50 | 1 31 10 8 Melee . | . . . . Ram . | . . . . Kick . | . . . . Crush . | . . . . Escape Stasis . | . . . . Rewire . | . . . . Trap . | . . . . Miscellaneous . | . . . . Route ------- -11/Junkyard -10/Materials (discovered 2 exits: *Mat / *Min) -10/Mines (discovered 2 exits: *Mat / *Exi) -10/Exiles History --------- Turn | Location | Event 16 | -11/Junkyard | Identified exit to Materials 16 | -11/Junkyard | Discovered exit to Materials (range 15) 80 | -11/Junkyard | Entered Materials 80 | -10/Materials | Evolved 1 slot: Utility x1 310 | -10/Materials | Build established: Hacker-Mutant 484 | -10/Materials | Identified exit to Mines 484 | -10/Materials | Discovered exit to Mines (range 14) 645 | -10/Materials | Identified exit to Materials 645 | -10/Materials | Discovered exit to Materials (range 8) 856 | -10/Materials | Entered Mines 1270 | -10/Mines | Discovered exit to Materials (range 13) 1413 | -10/Mines | Deemed a non-threat by the Exiles lab entrance 1413 | -10/Mines | Identified exit to Exiles 1413 | -10/Mines | Discovered exit to Exiles (range 5) 1418 | -10/Mines | Entered Exiles 1447 | -10/Exiles | Met 8R-AWN 1468 | -10/Exiles | Met EX-HEX 1505 | -10/Exiles | Met EX-BIN 1526 | -10/Exiles | Aligned with FarCom system 1528 | -10/Exiles | Given EX-Vault access code 1555 | -10/Exiles | Opened EX-Vault 1563 | -10/Exiles | Found Prototype Device 1563 | -10/Exiles | Identified Chronowheel 1563 | -10/Exiles | Activated Chronowheel 1568 | -10/Exiles | Found Prototype Energy Cannon 1568 | -10/Exiles | Identified Firepult 1585 | -10/Exiles | Attacked by the Exiles 1633 | -10/Exiles | Destroyed 7 combat bots 1690 | -10/Exiles | Core integrity fell below 50% 1710 | -10/Exiles | Core integrity fell below 20% 1738 | -10/Exiles | Destroyed by 8R-AWN with 8R-AWN's Boregun Last Messages --------------- 01713_ Penetrated by HV Slug. 01713_ HV Slug penetrates Wall. 01713_ Penetrated by HV Slug. 01713_ HV Slug penetrates Wall. 01717_ Penetrated by HV Slug. 01717_ HV Slug penetrates Wall. 01721_ HV Slug penetrates DEC's Workstation. 01721_ DEC's Workstation disabled. 01721_ HV Slug penetrates DEC's Workstation. 01721_ HV Slug penetrates Wall. 01726_ Penetrated by HV Slug. 01726_ HV Slug penetrates Wall. 01730_ Penetrated by HV Slug. 01730_ HV Slug penetrates Machine. 01730_ HV Slug penetrates Wall. 01734_ Penetrated by HV Slug. 01734_ HV Slug penetrates Machine. 01734_ Machine disabled. 01734_ HV Slug penetrates Machine. 01738_ Penetrated by HV Slug. Map ----- +----------------------------------------------------+ | ??????????????????????#! [ = #??????????????????? | | ??????????????????????# #??????????????????? | | ??????????????????????# #??????????????????? | | ??????????????????????## ##??????????????????? | | ??????????????????????#X #???????????????????? | | ??????????????????????## #???????????????????? | | ???????????????????????" ##??????????????????? | | ???????????????????????# "#?####?????????????? | | ???????????????????????# ##""""""????????????? | | ???????????????????????# # """????????????? | | ???????????????????????# X""????????????? | | ???????????????????????# # """????????????? | | ???????????????#######?# #""""""????????????? | | ???????????????# """"?# ######?????????????? | | ????????????????"" ## #?????????????????? | | ???????????????#""X" % #?????????????????? | | ???????????????#" #?????????????????? | | ???????????????#" # g ##?????????????????? | | ???????????????#""""""# #########?????????? | | ???????????????##"###?# """"""#?????????? | | ???????????????? ?????## """""#?????????? | | ???????????????????????# """"""#?????????? | | ??????????????????????## " """"#?????????? | | ??????????????????????# """"#?????????? | | ??????????????????????# """#?????????? | | ??????????????????????#" @ """#?????????? | | ??????????????????????# """#?????????? | | ??????????????????????# """#?????????? | | ??????????????????????#" """#?????????? | | ??????????????????????## """"?????????? | | ???????????????????????# """#?????????? | | ???????????????????????# "X" """??????????? | | ???????????????????????#" """ ??????????? | | ???????????????????????# """""""""??????????? | | ??????????????????????##" ###########?????????? | | ?????????????????????##"" #???????????????????? | | ??????????????????####"" #???????????????????? | | ????????????????#""""""" ##??????????????????? | | ????????????????""" " "" ##???###########???? | | ??????????????" """ " #####"""""""""##??? | | ????????????? " " " """ """"##?? | | ?????????? "" " #?? | | ?????????? " """#?? | | ??????????? " "#?? | | ??????????? " "##? | | ???????????? ""## | | ???????????? """""" """ | | ???????????? ######""" " | | ????????????? ""#?????#####""" | | ????????????? """#??????????##""" | +----------------------------------------------------+ Best States ------------- Heat Dissipation 25 Energy Generation 10 Energy Capacity 250 Matter Stores 300 Matter Capacity 300 Sight Range 16 Robot Scan Range 14 Terrain Scan Density 10 Armor Coverage 150 Resistance: KI 35 Resistance: TH 35 Resistance: EX 35 Resistance: EM 35 Resistance: I 35 Resistance: S 35 Resistance: P 35 Evasion (%) 55 Offensive Hacking 20 Item Schematics ----------------- None Robot Schematics ------------------ None Fabricated ------------ Nothing Alien Tech Used ----------------- None Achievements -------------- None Challenges ------------ None Game ------ Seed SingularityDeuteriumSabre Manual? 0 Play Time 00:17:46 Cumulative 304.7 hours Start 2023.05.11 @ 18:50:44 End 2023.05.12 @ 22:22:05 Sessions 3 Manual Loads 0 Difficulty Explorer Special Mode None Game No. 97 Rogue 7 Adventurer 71 Explorer 19 Win Type - Total 7 Types 6/0/1/0/0/0/0/0/0 Lore% 70 Gallery% 77 Achievement% 64 Wizard Run 0 Options --------- ASCII 0 Keyboard 0 Movement Mouse Keybinds 0 Fullscreen 2 Font 20/Terminus Map View 66x50 Tactical HUD 1 Map Filters NONE Filters NONE Steam 1 RUN: a467a10e-2c1e-4541-bb40-2b197adc4f44